fUST/lending_fUST_20250102
["ID","MTS","AMOUNT","RATE_DAILY","PERIOD"]
[347420520,1735780259012,-500.0,0.00020821,3]
[347420521,1735780259023,-500.0,0.00020821,3]
[347420522,1735780259032,-500.0,0.00020821,3]
[347420523,1735780259042,-500.0,0.00020821,3]
[347420524,1735780259052,-435.29662122,0.00020821,3]
[347420525,1735780259061,-834.95,0.00020821,3]
[347420526,1735780259071,-601.73,0.00020821,3]
[347420527,1735780259081,-520.33,0.00020821,3]
[347420528,1735780259090,-150.23,0.00020821,2]
[347420529,1735780259099,-535.69,0.00020821,3]
[347420530,1735780259108,-500.0,0.00020821,3]
[347420531,1735780259118,-539.85,0.00020821,3]
[347420532,1735780259127,-500.0,0.00020821,3]
[347420533,1735780259136,-707.14,0.00020821,3]
[347420534,1735780259145,-767.85,0.00020821,3]
[347420535,1735780259155,-500.0,0.00020821,3]
[347420536,1735780259164,-500.0,0.00020821,3]
[347420537,1735780259173,-1605.29,0.00020821,3]
[347420538,1735780259182,-500.0,0.00020821,3]
[347420539,1735780259191,-643.16,0.00020821,3]
[347420540,1735780259201,-500.0,0.00020821,3]
[347420541,1735780259210,-962.53,0.00020821,3]
[347420542,1735780259221,-4635.84,0.00020821,3]
[347420543,1735780259231,-500.0,0.00020821,3]
[347420544,1735780259240,-500.0,0.00020821,3]
[347420545,1735780259250,-150.21,0.00020821,2]
[347420546,1735780259259,-500.0,0.00020821,3]
[347420547,1735780259268,-559.63,0.00020821,3]
[347420548,1735780259278,-500.0,0.00020821,3]
[347420549,1735780259287,-705.37,0.00020821,3]
[347420550,1735780259405,-500.0,0.00020821,3]
[347420551,1735780259415,-1168.11,0.00020821,3]
[347420552,1735780259425,-3140.79,0.00020821,3]
[347420553,1735780259436,-756.81,0.00020821,3]
[347420554,1735780259449,-917.17,0.00020821,3]
[347420555,1735780259459,-3789.54,0.00020821,3]
[347420556,1735780259469,-729.68,0.00020821,3]
[347420557,1735780259478,-21689.88,0.00020821,3]
[347420558,1735780259487,-1879.51,0.00020821,3]
[347420559,1735780259497,-528.01,0.00020821,3]
[347420560,1735780259506,-500.0,0.00020821,3]
[347420561,1735780259516,-272.14136554,0.00020821,3]
[347420562,1735780259525,-850.65,0.00020821,3]
[347420563,1735780259534,-500.0,0.00020821,3]
[347420564,1735780259543,-500.0,0.00020821,3]
[347420565,1735780259553,-500.0,0.00020821,3]
[347420566,1735780259564,-1322.01,0.00020821,2]
[347420567,1735780259574,-763.58,0.00020821,3]
[347420568,1735780259583,-1927.52,0.00020821,3]
[347420569,1735780259593,-1134.33,0.00020821,3]
[347420570,1735780259602,-637.46714397,0.00020821,3]
[347420571,1735780259613,-500.0,0.00020821,3]
[347420572,1735780259622,-2124.41,0.00020821,3]
[347420573,1735780259631,-500.0,0.00020821,3]
[347420574,1735780259640,-1073.51,0.00020821,3]
[347420575,1735780259650,-1135.05,0.00020821,3]
[347420576,1735780259659,-500.0,0.00020821,3]
[347420577,1735780259668,-1144.62,0.00020821,3]
[347420578,1735780259678,-513.07,0.00020821,3]
[347420579,1735780259688,-678.15,0.00020821,3]
[347420580,1735780259698,-1023.82,0.00020821,3]
[347420581,1735780259708,-1443.83,0.00020821,3]
[347420582,1735780259718,-569.79,0.00020821,3]
[347420583,1735780259728,-500.0,0.00020821,3]
[347420584,1735780259737,-500.0,0.00020821,3]
[347420585,1735780259747,-500.0,0.00020821,3]
[347420586,1735780259756,-526.71,0.00020821,3]
[347420587,1735780259766,-591.11,0.00020821,3]
[347420588,1735780259776,-428.4656794,0.00020822,2]
[347420589,1735780259785,-153.0885098,0.00020822,2]
[347420590,1735780259795,-1000.0,0.00020834,2]
[347420591,1735780259804,-186.992767,0.00020895,2]
[347420592,1735780259813,-151.0,0.00020895,2]
[347420593,1735780259823,-8913.76,0.000209,2]
[347420594,1735780259833,-11437.87,0.000209,2]
[347420595,1735780259844,-461.075417,0.00020904,2]
[347420596,1735780259853,-249.56505421,0.00020934,2]
[347420597,1735780259863,-3149.84871693,0.00021,2]
[347420598,1735780259871,-3000.0,0.00021,2]
[347420599,1735780259880,-724.04508033,0.00021005,2]
[347420600,1735780259890,-3000.0,0.0002101,2]
[347420601,1735780259899,-3000.0,0.0002102,2]
[347420602,1735780259908,-500.0,0.00021022,2]
[347420603,1735780259917,-1000.0,0.00021025,2]
[347420604,1735780259926,-3000.0,0.0002103,2]
[347420605,1735780259935,-3000.0,0.0002104,2]
[347420606,1735780259944,-3000.0,0.0002105,2]
[347420607,1735780259953,-6097.45026161,0.00021054,14]
[347420608,1735780259962,-8453.89636499,0.00021054,14]
[347420609,1735780259972,-3000.0,0.0002106,2]
[347420610,1735780259985,-3803.03895794,0.00021061,2]
[347420611,1735780259995,-8300.16248878,0.00021065,2]
[347420612,1735780260004,-3363.394466,0.0002107,2]
[347420613,1735780260014,-500.0,0.00021095,3]
[347420614,1735780260025,-500.0,0.00021095,3]
[347420615,1735780260035,-500.0,0.00021095,3]
[347420616,1735780260044,-500.0,0.00021095,3]
[347420617,1735780260054,-564.54,0.00021095,3]
[347420618,1735780260063,-500.0,0.00021095,3]
[347420619,1735780260073,-500.0,0.00021095,3]
[347420620,1735780260083,-500.0,0.00021095,3]
[347420621,1735780260092,-500.0,0.00021095,3]
[347420622,1735780260101,-500.0,0.00021095,3]
[347420623,1735780260110,-500.0,0.00021095,3]
[347420624,1735780260120,-500.0,0.00021095,3]
[347420625,1735780260130,-500.0,0.00021095,3]
[347420626,1735780260139,-500.0,0.00021095,3]
[347420627,1735780260148,-570.52,0.00021095,3]
[347420628,1735780260157,-734.17,0.00021095,3]
[347420629,1735780260167,-640.33,0.00021095,3]
[347420630,1735780260176,-2349.26,0.00021095,3]
[347420631,1735780260185,-722.51,0.00021095,3]
[347420632,1735780260195,-644.18,0.00021095,3]
[347420633,1735780260205,-506.34,0.00021095,3]
[347420634,1735780260214,-500.0,0.00021095,3]
[347420635,1735780260224,-500.0,0.00021095,3]
[347420636,1735780260234,-500.0,0.00021095,3]
[347420637,1735780260244,-500.0,0.00021095,3]
[347420638,1735780260253,-2569.39,0.00021095,3]
[347420639,1735780260263,-500.0,0.00021095,3]
[347420640,1735780260275,-566.36,0.00021095,3]
[347420641,1735780260285,-500.0,0.00021095,3]
[347420642,1735780260295,-500.0,0.00021095,3]
[347420643,1735780260304,-177.30138508,0.00021095,3]
[347420644,1735780260313,-500.0,0.00021095,3]
[347420645,1735780260324,-500.0,0.00021095,3]
[347420646,1735780260333,-834.95,0.00021095,3]
[347420647,1735780260344,-601.73,0.00021095,3]
[347420648,1735780260353,-520.33,0.00021095,3]
[347420649,1735780260363,-535.69,0.00021095,3]
[347420650,1735780260373,-500.0,0.00021095,3]
[347420651,1735780260382,-539.85,0.00021095,3]
[347420652,1735780260392,-500.0,0.00021095,3]
[347420653,1735780260401,-767.85,0.00021095,3]
[347420654,1735780260411,-707.14,0.00021095,3]
[347420655,1735780260420,-500.0,0.00021095,3]
[347420656,1735780260430,-500.0,0.00021095,3]
[347420657,1735780260439,-1605.29,0.00021095,3]
[347420658,1735780260451,-500.0,0.00021095,3]
[347420659,1735780260462,-643.16,0.00021095,3]
[347420660,1735780260471,-500.0,0.00021095,3]
[347420661,1735780260481,-962.53,0.00021095,3]
[347420662,1735780260490,-4635.84,0.00021095,3]
[347420663,1735780260499,-559.63,0.00021095,3]
[347420664,1735780260508,-500.0,0.00021095,3]
[347420665,1735780260518,-500.0,0.00021095,3]
[347420666,1735780260527,-705.37,0.00021095,3]
[347420667,1735780260536,-500.0,0.00021095,3]
[347420668,1735780260546,-1168.11,0.00021095,3]
[347420669,1735780260555,-3140.79,0.00021095,3]
[347420670,1735780260565,-756.81,0.00021095,3]
[347420671,1735780260574,-917.17,0.00021095,3]
[347420672,1735780260583,-3789.54,0.00021095,3]
[347420673,1735780260593,-729.68,0.00021095,3]
[347420674,1735780260602,-21689.88,0.00021095,3]
[347420675,1735780260611,-1879.51,0.00021095,3]
[347420676,1735780260621,-528.01,0.00021095,3]
[347420677,1735780260631,-500.0,0.00021095,3]
[347420678,1735780260640,-850.65,0.00021095,3]
[347420679,1735780260649,-500.0,0.00021095,3]
[347420680,1735780260659,-500.0,0.00021095,3]
[347420681,1735780260668,-1322.01,0.00021095,2]
[347420682,1735780260678,-500.0,0.00021095,3]
[347420683,1735780260687,-1927.52,0.00021095,3]
[347420684,1735780260696,-763.58,0.00021095,3]
[347420685,1735780260706,-1134.33,0.00021095,3]
[347420686,1735780260715,-500.0,0.00021095,3]
[347420687,1735780260725,-2124.41,0.00021095,3]
[347420688,1735780260734,-500.0,0.00021095,3]
[347420689,1735780260744,-1073.51,0.00021095,3]
[347420690,1735780260753,-1135.05,0.00021095,3]
[347420691,1735780260762,-500.0,0.00021095,3]
[347420692,1735780260773,-1144.62,0.00021095,3]
[347420693,1735780260783,-513.07,0.00021095,3]
[347420694,1735780260794,-678.15,0.00021095,3]
[347420695,1735780260803,-1023.82,0.00021095,3]
[347420696,1735780260814,-1443.83,0.00021095,3]
[347420697,1735780260823,-569.79,0.00021095,3]
[347420698,1735780260832,-500.0,0.00021095,3]
[347420699,1735780260841,-500.0,0.00021095,3]
[347420700,1735780260851,-500.0,0.00021095,3]
[347420701,1735780260860,-526.71,0.00021095,3]
[347420702,1735780260869,-591.11,0.00021095,3]
[347420703,1735780260879,-461.075417,0.00021096,2]
[347420704,1735780260889,-153.0,0.00021096,2]
[347420705,1735780260898,-724.04508033,0.00021268,2]
[347420706,1735780260907,-4520.1512201,0.00021269,7]
[347420707,1735780260916,-4520.1512201,0.00021269,7]
[347420708,1735780260926,-4520.1512201,0.00021269,7]
[347420709,1735780260935,-4520.1512201,0.00021269,7]
[347420710,1735780260945,-4520.1512201,0.00021269,7]
[347420711,1735780260955,-4520.1512201,0.00021269,7]
[347420712,1735780260964,-4520.1512201,0.00021269,7]
[347420713,1735780260974,-4520.1512201,0.00021269,7]
[347420714,1735780260991,-4520.1512201,0.00021269,7]
[347420715,1735780261001,-4520.1512201,0.00021269,7]
[347420716,1735780261011,-4520.1512201,0.00021269,7]
[347420717,1735780261021,-4520.1512201,0.00021269,7]
[347420718,1735780261031,-4520.1512201,0.00021269,7]
[347420719,1735780261041,-4520.1512201,0.00021269,7]
[347420720,1735780261050,-4520.1512201,0.00021269,7]
[347420721,1735780261061,-4520.1512201,0.00021269,7]
[347420722,1735780261071,-4520.1512201,0.00021269,7]
[347420723,1735780261080,-4520.1512201,0.00021269,7]
[347420724,1735780261089,-4520.1512201,0.00021269,7]
[347420725,1735780261099,-4520.15,0.00021269,7]
[347420726,1735780261108,-221.10692487,0.00021269,7]
[347420727,1735780261118,-221.10692487,0.00021269,7]
[347420728,1735780261127,-221.10692487,0.00021269,7]
[347420729,1735780261137,-221.10692487,0.00021269,7]
[347420730,1735780261148,-221.10692487,0.00021269,7]
[347420731,1735780261157,-221.10692487,0.00021269,7]
[347420732,1735780261167,-221.10692487,0.00021269,7]
[347420733,1735780261177,-221.10692487,0.00021269,7]
[347420734,1735780261186,-221.10692487,0.00021269,7]
[347420735,1735780261195,-221.10692487,0.00021269,7]
[347420736,1735780261205,-221.10692487,0.00021269,7]
[347420737,1735780261215,-221.10692487,0.00021269,7]
[347420738,1735780261224,-221.10692487,0.00021269,7]
[347420739,1735780261233,-221.10692487,0.00021269,7]
[347420740,1735780261243,-221.10692487,0.00021269,7]
[347420741,1735780261253,-221.10692487,0.00021269,7]
[347420742,1735780261262,-221.10692487,0.00021269,7]
[347420743,1735780261273,-221.10692487,0.00021269,7]
[347420744,1735780261283,-221.10692487,0.00021269,7]
[347420745,1735780261292,-221.1,0.00021269,7]
[347420746,1735780261302,-461.075417,0.00021288,2]
[347420747,1735780261311,-394.1701864,0.00021315,2]
[347420748,1735780261321,-3803.03895794,0.00021322,2]
[347420749,1735780261331,-305.07379908,0.00021327,2]
[347420750,1735780261340,-500.0,0.00021369,3]
[347420751,1735780261349,-684.79380554,0.00021369,3]
[347420752,1735780261359,-500.0,0.00021369,3]
[347420753,1735780261368,-500.0,0.00021369,3]
[347420754,1735780261378,-564.54,0.00021369,3]
[347420755,1735780261387,-500.0,0.00021369,3]
[347420756,1735780261397,-500.0,0.00021369,3]
[347420757,1735780261496,-500.0,0.00021369,3]
[347420758,1735780261516,-500.0,0.00021369,3]
[347420759,1735780261527,-500.0,0.00021369,3]
[347420760,1735780261537,-500.0,0.00021369,3]
[347420761,1735780261546,-600.50973967,0.00021369,3]
[347420762,1735780261555,-500.0,0.00021369,3]
[347420763,1735780261566,-500.0,0.00021369,3]
[347420764,1735780261575,-570.52,0.00021369,3]
[347420765,1735780261585,-734.17,0.00021369,3]
[347420766,1735780261595,-640.33,0.00021369,3]
[347420767,1735780261604,-2349.26,0.00021369,3]
[347420768,1735780261614,-722.51,0.00021369,3]
[347420769,1735780261623,-644.18,0.00021369,3]
[347420770,1735780261633,-506.34,0.00021369,3]
[347420771,1735780261643,-500.0,0.00021369,3]
[347420772,1735780261652,-500.0,0.00021369,3]
[347420773,1735780261662,-500.0,0.00021369,3]
[347420774,1735780261672,-500.0,0.00021369,3]
[347420775,1735780261682,-2569.39,0.00021369,3]
[347420776,1735780261691,-500.0,0.00021369,3]
[347420777,1735780261701,-566.36,0.00021369,3]
[347420778,1735780261710,-500.0,0.00021369,3]
[347420779,1735780261719,-500.0,0.00021369,3]
[347420780,1735780261729,-500.0,0.00021369,3]
[347420781,1735780261738,-500.0,0.00021369,3]
[347420782,1735780261748,-834.95,0.00021369,3]
[347420783,1735780261757,-601.73,0.00021369,3]
[347420784,1735780261767,-520.33,0.00021369,3]
[347420785,1735780261778,-535.69,0.00021369,3]
[347420786,1735780261787,-500.0,0.00021369,3]
[347420787,1735780261797,-539.85,0.00021369,3]
[347420788,1735780261807,-500.0,0.00021369,3]
[347420789,1735780261817,-767.85,0.00021369,3]
[347420790,1735780261827,-707.14,0.00021369,3]
[347420791,1735780261838,-500.0,0.00021369,3]
[347420792,1735780261848,-500.0,0.00021369,3]
[347420793,1735780261857,-1605.29,0.00021369,3]
[347420794,1735780261867,-500.0,0.00021369,3]
[347420795,1735780261877,-643.16,0.00021369,3]
[347420796,1735780261887,-500.0,0.00021369,3]
[347420797,1735780261896,-962.53,0.00021369,3]
[347420798,1735780261906,-4635.84,0.00021369,3]
[347420799,1735780261916,-559.63,0.00021369,3]
[347420800,1735780261926,-500.0,0.00021369,3]
[347420801,1735780261935,-500.0,0.00021369,3]
[347420802,1735780261945,-705.37,0.00021369,3]
[347420803,1735780261954,-500.0,0.00021369,3]
[347420804,1735780261963,-1168.11,0.00021369,3]
[347420805,1735780261973,-3140.79,0.00021369,3]
[347420806,1735780261987,-756.81,0.00021369,3]
[347420807,1735780261996,-917.17,0.00021369,3]
[347420808,1735780262006,-3789.54,0.00021369,3]
[347420809,1735780262015,-729.68,0.00021369,3]
[347420810,1735780262027,-14698.83077844,0.00021369,3]
[347422086,1735781163765,1000.0,0.00025,120]
[347422089,1735781219282,-218.924366,0.00013973,2]
[347422090,1735781219305,-7.93191807,0.00018995,2]
[347422241,1735781443149,-335.53366511,0.00018987,5]
[347422242,1735781443158,-457.44629792,0.00019078,2]
[347422243,1735781443168,-324.64236567,0.00019078,2]
[347422244,1735781443177,-500.0,0.00019173,2]
[347422245,1735781443187,-300.0,0.00019176,2]
[347422246,1735781443197,-500.0,0.00019177,2]
[347422247,1735781443206,-500.0,0.00019177,2]
[347422248,1735781443216,-500.0,0.00019177,2]
[347422249,1735781443225,-172.28420782,0.00019177,2]
[347422250,1735781443234,-500.0,0.00019177,2]
[347422252,1735781443244,-169.55456919,0.00019177,2]
[347422254,1735781443253,-500.0,0.00019177,2]
[347422255,1735781443263,-648.74775575,0.00019177,2]
[347422256,1735781443274,-197.00593641,0.00019177,2]
[347422257,1735781443283,-188.0,0.00019178,2]
[347422258,1735781443293,-500.0,0.00019178,2]
[347422259,1735781443302,-251.63699077,0.00019178,2]
[347422260,1735781443311,-500.0,0.00019178,2]
[347422261,1735781443320,-500.0,0.00019178,2]
[347422262,1735781443330,-500.0,0.00019178,2]
[347422263,1735781443339,-454.39526132,0.00019178,2]
[347422264,1735781443349,-500.0,0.00019178,2]
[347422265,1735781443358,-500.0,0.00019178,2]
[347422266,1735781443367,-500.0,0.00019178,2]
[347422267,1735781443377,-500.0,0.00019178,2]
[347422268,1735781443386,-500.0,0.00019178,2]
[347422270,1735781443395,-500.0,0.00019178,2]
[347422271,1735781443405,-500.0,0.00019178,2]
[347422272,1735781443414,-500.0,0.00019178,2]
[347422274,1735781443423,-500.0,0.00019178,2]
[347422276,1735781443432,-500.0,0.00019178,2]
[347422278,1735781443442,-500.0,0.00019178,2]
[347422280,1735781443451,-500.0,0.00019178,2]
[347422282,1735781443464,-492.76512648,0.00019178,2]
[347422283,1735781443474,-500.0,0.00019178,2]
[347422284,1735781443484,-500.0,0.00019178,2]
[347422285,1735781443493,-500.0,0.00019178,2]
[347422286,1735781443503,-500.0,0.00019178,2]
[347422288,1735781443512,-500.0,0.00019178,2]
[347422290,1735781443523,-500.0,0.00019178,2]
[347422291,1735781443533,-500.0,0.00019178,2]
[347422292,1735781443543,-500.0,0.00019178,2]
[347422293,1735781443552,-635.64,0.00019178,2]
[347422294,1735781443562,-500.0,0.00019178,2]
[347422295,1735781443571,-500.0,0.00019178,2]
[347422296,1735781443580,-500.0,0.00019178,2]
[347422297,1735781443589,-500.0,0.00019178,2]
[347422298,1735781443598,-500.0,0.00019178,2]
[347422299,1735781443608,-500.0,0.00019178,2]
[347422300,1735781443617,-500.0,0.00019178,2]
[347422301,1735781443628,-500.0,0.00019178,2]
[347422302,1735781443637,-500.0,0.00019178,2]
[347422303,1735781443646,-500.0,0.00019178,2]
[347422304,1735781443656,-500.0,0.00019178,2]
[347422305,1735781443665,-3171.44,0.00019178,2]
[347422306,1735781443675,-539.03,0.00019178,2]
[347422307,1735781443684,-500.0,0.00019178,2]
[347422308,1735781443693,-500.0,0.00019178,2]
[347422309,1735781443706,-500.0,0.00019178,2]
[347422310,1735781443716,-227.00233238,0.00019178,2]
[347422311,1735781443725,-608.36,0.00019178,2]
[347422312,1735781443735,-500.0,0.00019178,2]
[347422313,1735781443744,-500.0,0.00019178,2]
[347422314,1735781443753,-500.0,0.00019178,2]
[347422315,1735781443763,-567.2,0.00019178,2]
[347422316,1735781443774,-500.0,0.00019178,2]
[347422317,1735781443783,-500.0,0.00019178,2]
[347422318,1735781443792,-500.0,0.00019178,2]
[347422319,1735781443801,-500.0,0.00019178,2]
[347422320,1735781443810,-514.34,0.00019178,2]
[347422321,1735781443820,-500.0,0.00019178,2]
[347422322,1735781443829,-562.62,0.00019178,2]
[347422323,1735781443838,-552.0,0.00019178,2]
[347422324,1735781443848,-500.0,0.00019178,2]
[347422325,1735781443858,-500.0,0.00019178,2]
[347422326,1735781443867,-682.65,0.00019178,2]
[347422327,1735781443876,-500.0,0.00019178,2]
[347422328,1735781443885,-476.47182343,0.00019178,2]
[347422329,1735781443895,-500.0,0.00019178,2]
[347422330,1735781443904,-688.94,0.00019178,2]
[347422331,1735781443913,-500.0,0.00019178,2]
[347422332,1735781443922,-500.0,0.00019178,2]
[347422333,1735781443931,-500.0,0.00019178,2]
[347422334,1735781443940,-500.0,0.00019178,2]
[347422335,1735781443950,-500.0,0.00019178,2]
[347422336,1735781443960,-500.0,0.00019178,2]
[347422337,1735781443970,-500.0,0.00019178,2]
[347422338,1735781443979,-500.0,0.00019178,2]
[347422339,1735781443988,-500.0,0.00019178,2]
[347422340,1735781443997,-614.51,0.00019178,2]
[347422341,1735781444007,-500.0,0.00019178,2]
[347422342,1735781444017,-500.0,0.00019178,2]
[347422343,1735781444028,-500.0,0.00019178,2]
[347422344,1735781444038,-500.0,0.00019178,2]
[347422345,1735781444048,-500.0,0.00019178,2]
[347422346,1735781444058,-500.0,0.00019178,2]
[347422347,1735781444068,-500.0,0.00019178,2]
[347422348,1735781444077,-500.0,0.00019178,2]
[347422349,1735781444086,-1968.22,0.00019178,2]
[347422350,1735781444095,-563.24,0.00019178,2]
[347422351,1735781444105,-497.31854636,0.00019178,2]
[347422352,1735781444114,-500.0,0.00019178,2]
[347422353,1735781444124,-500.0,0.00019178,2]
[347422354,1735781444139,-500.0,0.00019178,2]
[347422355,1735781444148,-379.07484313,0.00019178,2]
[347422356,1735781444158,-500.0,0.00019178,2]
[347422357,1735781444167,-500.0,0.00019178,2]
[347422358,1735781444176,-500.0,0.00019178,2]
[347422359,1735781444185,-500.0,0.00019178,2]
[347422360,1735781444195,-500.0,0.00019178,2]
[347422361,1735781444204,-500.0,0.00019178,2]
[347422362,1735781444214,-500.0,0.00019178,2]
[347422363,1735781444224,-500.0,0.00019178,2]
[347422364,1735781444234,-500.0,0.00019178,2]
[347422365,1735781444244,-772.57,0.00019178,2]
[347422366,1735781444257,-500.0,0.00019178,2]
[347422367,1735781444268,-500.0,0.00019178,2]
[347422368,1735781444277,-500.0,0.00019178,2]
[347422369,1735781444287,-1364.88,0.00019178,2]
[347422370,1735781444296,-415.25873155,0.00019178,2]
[347422371,1735781444305,-17282.47,0.00019178,2]
[347422372,1735781444315,-500.0,0.00019178,2]
[347422373,1735781444324,-500.0,0.00019178,2]
[347422374,1735781444335,-920.77,0.00019178,2]
[347422375,1735781444346,-518.55894246,0.00019178,2]
[347422376,1735781444356,-650.43,0.00019178,2]
[347422377,1735781444367,-668.77,0.00019178,2]
[347422378,1735781444376,-3722.61,0.00019178,2]
[347422379,1735781444385,-500.0,0.00019178,2]
[347422380,1735781444394,-500.0,0.00019178,2]
[347422381,1735781444403,-1336.34,0.00019178,2]
[347422382,1735781444412,-1957.8,0.00019178,2]
[347422383,1735781444421,-500.0,0.00019178,2]
[347422384,1735781444431,-500.0,0.00019178,2]
[347422385,1735781444440,-500.0,0.00019178,2]
[347422386,1735781444450,-500.0,0.00019178,2]
[347422387,1735781444459,-500.0,0.00019178,2]
[347422388,1735781444468,-500.0,0.00019178,2]
[347422389,1735781444478,-2438.59,0.00019178,2]
[347422390,1735781444487,-599.72,0.00019178,2]
[347422391,1735781444496,-907.56,0.00019178,2]
[347422392,1735781444505,-500.0,0.00019178,2]
[347422393,1735781444516,-500.0,0.00019178,2]
[347422394,1735781444526,-500.0,0.00019178,2]
[347422395,1735781444536,-527.71,0.00019178,2]
[347422396,1735781444545,-605.99,0.00019178,2]
[347422397,1735781444554,-500.0,0.00019178,2]
[347422398,1735781444563,-500.0,0.00019178,2]
[347422399,1735781444572,-899.32,0.00019178,2]
[347422400,1735781444582,-871.54,0.00019178,2]
[347422401,1735781444591,-500.0,0.00019178,2]
[347422402,1735781444600,-570.43,0.00019178,2]
[347422403,1735781444610,-500.0,0.00019178,2]
[347422404,1735781444619,-500.0,0.00019178,2]
[347422405,1735781444630,-500.0,0.00019178,2]
[347422406,1735781444640,-220.98382394,0.00019178,2]
[347422407,1735781444650,-500.0,0.00019178,2]
[347422408,1735781444662,-500.0,0.00019178,2]
[347422409,1735781444673,-500.0,0.00019178,2]
[347422410,1735781444682,-583.03,0.00019178,2]
[347422411,1735781444692,-500.0,0.00019178,2]
[347422412,1735781444702,-1532.37,0.00019178,2]
[347422413,1735781444712,-500.0,0.00019178,2]
[347422414,1735781444721,-500.0,0.00019178,2]
[347422415,1735781444730,-500.0,0.00019178,2]
[347422416,1735781444740,-500.0,0.00019178,2]
[347422417,1735781444749,-955.72,0.00019178,2]
[347422418,1735781444758,-1437.5,0.00019178,2]
[347422419,1735781444768,-500.0,0.00019178,2]
[347422420,1735781444777,-500.0,0.00019178,2]
[347422421,1735781444786,-500.0,0.00019178,2]
[347422422,1735781444795,-500.0,0.00019178,2]
[347422423,1735781444805,-500.0,0.00019178,2]
[347422424,1735781444814,-838.21,0.00019178,2]
[347422425,1735781444823,-500.0,0.00019178,2]
[347422426,1735781444833,-412.84504956,0.00019178,2]
[347422427,1735781444843,-500.0,0.00019178,2]
[347422428,1735781444852,-506.47678182,0.00019178,2]
[347422429,1735781444861,-500.0,0.00019178,2]
[347422430,1735781444870,-500.0,0.00019178,2]
[347422431,1735781444879,-505.31244333,0.00019178,2]
[347422432,1735781444888,-372.14802043,0.00019178,2]
[347422433,1735781444898,-500.0,0.00019178,2]
[347422434,1735781444907,-841.01,0.00019178,2]
[347422435,1735781444915,-962.78,0.00019178,2]
[347422436,1735781444925,-500.0,0.00019178,2]
[347422437,1735781444934,-506.94933165,0.00019178,2]
[347422438,1735781444944,-505.77253567,0.00019178,2]
[347422439,1735781444955,-505.01224718,0.00019178,2]
[347422440,1735781444965,-500.0,0.00019178,2]
[347422441,1735781444974,-506.89326545,0.00019178,2]
[347422442,1735781444984,-1333.99,0.00019178,2]
[347422443,1735781444994,-500.0,0.00019178,2]
[347422444,1735781445003,-500.0,0.00019178,2]
[347422445,1735781445012,-507.55141132,0.00019178,2]
[347422446,1735781445024,-893.66,0.000192,2]
[347422447,1735781445034,-666.0,0.00019352,2]
[347422448,1735781445043,-457.44629792,0.0001942,2]
[347422449,1735781445052,-151.0,0.00019452,2]
[347422450,1735781445061,-151.0,0.00019452,2]
[347422451,1735781445070,-151.0,0.00019452,2]
[347422452,1735781445079,-151.0,0.00019452,2]
[347422453,1735781445089,-151.0,0.00019452,2]
[347422454,1735781445099,-151.0,0.00019452,2]
[347422455,1735781445108,-151.0,0.00019452,2]
[347422456,1735781445117,-151.0,0.00019452,2]